[Event "WYCC 2018 G16"]
[Site "Halkidiki"]
[Date "2018.10.20"]
[Round "1"]
[White "Nguyen, Vu Thu Hien"]
[Black "Bach, Ngoc Thuy Duong"]
[Result "1/2-1/2"]
[ECO "D48"]
[WhiteElo "1841"]
[BlackElo "2161"]
[Annotator "NA"]
[PlyCount "85"]
[EventDate "2018.10.20"]
[EventType "swiss"]
[EventCountry "GRE"]
[SourceTitle "playchess.com"]
[Source "ChessBase"]
[SourceQuality "1"]
[TimeControl "40/5400+30:1800+30"]

1. d4 {[%emt 0:00:00]} d5 {[%emt 0:00:00]} 2. c4 {[%emt 0:00:00]} e6 {[%emt 0:00:00]} 3. Nc3 {[%emt 0:00:00]} c6 {[%emt 0:00:00]} 4. e3 {[%emt 0:00:06]} Nf6 {[%emt 0:00:00]} 5. Nf3 {[%emt 0:00:08]} Nbd7 {[%emt 0:00:00]} 6. Bd3 {[%emt 0:00:09]} dxc4 {[%emt 0:00:07]} 7. Bxc4 {[%emt 0:00:13]} b5 {[%emt 0:00:04]} 8. Bd3 {[%emt 0:00:09]} a6 {[%emt 0:01:06]} 9. e4 {[%emt 0:03:42]} c5 {[%emt 0:03:26]} 10. Bg5 {[%emt 0:17:30]} cxd4 {[%emt 0:18:25]} 11. Nxd4 {[%emt 0:00:09]} Bb7 {[%emt 0:00:37]} 12. f3 {[%emt 0:10:08]} Be7 {[%emt 0:04:27]} 13. Be3 {[%emt 0:10:35]} O-O {[%emt 0:01:13]} 14. O-O {[%emt 0:07:30]} Bc5 {[%emt 0:04:10]} 15. Bf2 $15 {[%emt 0:03:15]} Qb6 {[%emt 0:08:34]} 16. Nb3 {[%emt 0:04:23]} Bxf2+ {[%emt 0:00:28]} 17. Rxf2 {[%emt 0:00:07]} Ne5 {[%emt 0:00:19]} 18. Bf1 {[%emt 0:01:01]} Rfd8 {[%emt 0:00:39]} 19. Qc1 {[%emt 0:01:55]} Rac8 {[%emt 0:01:46]} 20. Qg5 {[%emt 0:00:21]} Ng6 {[%emt 0:02:07]} 21. Re1 {[%emt 0:01:00]} Bc6 {[%emt 0:05:57]} 22. Qc5 {[%emt 0:09:49]} Qb8 {[%emt 0:01:58]} 23. Qb4 {[%emt 0:00:58]} Ne5 {[%emt 0:02:57]} 24. Qa5 {[%emt 0:09:24]} Bb7 {[%emt 0:04:02]} 25. Qb6 {[%emt 0:01:48]} Nfd7 {[%emt 0:02:18]} 26. Qe3 {[%emt 0:00:15]} Bc6 {[%emt 0:03:30]} 27. Na5 {[%emt 0:01:30]} Nb6 {[%emt 0:10:14]} 28. a3 {[%emt 0:03:07]} Be8 {[%emt 0:00:57]} 29. Qf4 {[%emt 0:03:25]} Nbd7 {[%emt 0:07:39]} 30. Nb3 {[%emt 0:05:40]} b4 {[%emt 0:02:47]} 31. axb4 {[%emt 0:00:02]} Qxb4 {[%emt 0:00:08]} 32. Nc1 {[%emt 0:00:49]} a5 {[%emt 0:02:51]} 33. Rd2 {[%emt 0:00:21]} Ng6 {[%emt 0:03:31]} 34. Qe3 {[%emt 0:00:46]} Qb6 {[%emt 0:02:26]} 35. Qxb6 {[%emt 0:00:22]} Nxb6 {[%emt 0:00:05]} 36. Red1 {[%emt 0:00:11]} Rxd2 {[%emt 0:00:05]} 37. Rxd2 {[%emt 0:00:05]} Kf8 {[%emt 0:00:13]} 38. Kf2 {[%emt 0:00:18]} Ke7 {[%emt 0:00:23]} 39. g3 {[%emt 0:01:43]} Ne5 {[%emt 0:00:13]} 40. N1a2 {[%emt 0:00:00]} Nec4 {[%emt 0:00:00]} 41. Rc2 {[%emt 0:03:39]} a4 {[%emt 0:07:12]} 42. Be2 {[%emt 0:00:42]} Bd7 {[%emt 0:00:28]} 43. Bf1 {[%emt 0:00:11]} 1/2-1/2

[Event "WYCC 2018 G16"]
[Site "Halkidiki"]
[Date "2018.10.20"]
[Round "1"]
[White "Zhang, Cindy"]
[Black "Gomez Barrera, Javiera Belen"]
[Result "0-1"]
[ECO "A45"]
[WhiteElo "1790"]
[BlackElo "2136"]
[Annotator "NA"]
[PlyCount "82"]
[EventDate "2018.10.20"]
[EventType "swiss"]
[EventCountry "GRE"]
[SourceTitle "playchess.com"]
[Source "ChessBase"]
[SourceQuality "1"]
[TimeControl "40/5400+30:1800+30"]

1. d4 {[%emt 0:00:00]} Nf6 {[%emt 0:00:00]} 2. Bf4 {[%emt 0:00:00]} g6 {[%emt 0:00:33]} 3. e3 {[%emt 0:00:11]} Bg7 {[%emt 0:00:27]} 4. Nf3 {[%emt 0:00:33]} d6 {[%emt 0:00:12]} 5. c4 {[%emt 0:00:37]} O-O {[%emt 0:06:22]} 6. Nc3 {[%emt 0:00:40]} b6 {[%emt 0:00:25]} 7. h3 {[%emt 0:01:26]} Bb7 {[%emt 0:00:11]} 8. Be2 {[%emt 0:00:36]} Nbd7 {[%emt 0:01:11]} 9. O-O {[%emt 0:00:53]} Re8 {[%emt 0:00:49]} 10. Bh2 {[%emt 0:04:48]} e5 {[%emt 0:09:44]} 11. dxe5 {[%emt 0:12:22]} dxe5 {[%emt 0:05:50]} 12. Qc2 {[%emt 0:02:19]} Qe7 {[%emt 0:06:39]} 13. Rfd1 {[%emt 0:03:15]} Rad8 {[%emt 0:08:35]} 14. Nb5 {[%emt 0:21:41]} e4 {[%emt 0:39:45]} 15. Nfd4 {[%emt 0:06:10]} Ne5 {[%emt 0:02:24]} 16. Nxa7 {[%emt 0:08:44]} Nfd7 {[%emt 0:01:35]} 17. Nab5 {[%emt 0:02:24]} Nc5 {[%emt 0:01:06]} 18. a3 {[%emt 0:13:40]} Ncd3 {[%emt 0:04:03]} 19. Bf1 {[%emt 0:09:00]} c6 {[%emt 0:04:23]} 20. Nc3 {[%emt 0:02:02]} c5 {[%emt 0:00:21]} 21. Ndb5 {[%emt 0:01:29]} Nxc4 {[%emt 0:01:33]} 22. Bxd3 {[%emt 0:03:16]} exd3 {[%emt 0:00:30]} 23. Rxd3 {[%emt 0:00:11]} Rxd3 {[%emt 0:02:30]} 24. Qxd3 {[%emt 0:00:07]} Nxb2 {[%emt 0:00:36]} 25. Qc2 {[%emt 0:03:03]} Nc4 {[%emt 0:01:13]} 26. Re1 {[%emt 0:01:31]} Ne5 {[%emt 0:01:18]} 27. Bg3 {[%emt 0:01:26]} h5 {[%emt 0:00:21]} 28. Kh1 {[%emt 0:01:03]} h4 {[%emt 0:00:31]} 29. Bh2 {[%emt 0:00:05]} c4 {[%emt 0:00:19]} 30. Nd4 {[%emt 0:00:21]} Nd3 {[%emt 0:00:14]} 31. Re2 {[%emt 0:01:01]} Qg5 {[%emt 0:01:10]} 32. Nf3 {[%emt 0:00:28]} Qf6 {[%emt 0:00:33]} 33. Nb5 {[%emt 0:00:27]} Bxf3 {[%emt 0:00:25]} 34. gxf3 {[%emt 0:00:20]} Qxf3+ {[%emt 0:00:11]} 35. Kg1 {[%emt 0:00:05]} Rd8 {[%emt 0:00:47]} 36. Nd4 {[%emt 0:01:09]} Bxd4 {[%emt 0:00:37]} 37. exd4 {[%emt 0:00:07]} Rxd4 {[%emt 0:00:31]} 38. Re8+ {[%emt 0:00:51]} Kh7 {[%emt 0:00:30]} 39. Qd2 {[%emt 0:00:38]} Qxh3 {[%emt 0:00:31]} 40. Be5 {[%emt 0:00:00]} Rg4+ {[%emt 0:00:00]} 41. Bg3 {[%emt 0:02:57]} hxg3 0-1

[Event "WYCC 2018 G16"]
[Site "Halkidiki"]
[Date "2018.10.20"]
[Round "1"]
[White "Kalyva, Kyriaki"]
[Black "Ouellet, Maili-Jade"]
[Result "1/2-1/2"]
[ECO "D35"]
[WhiteElo "1779"]
[BlackElo "2122"]
[Annotator "NA"]
[PlyCount "69"]
[EventDate "2018.10.20"]
[EventType "swiss"]
[EventCountry "GRE"]
[SourceTitle "playchess.com"]
[Source "ChessBase"]
[SourceQuality "1"]
[TimeControl "40/5400+30:1800+30"]

1. d4 {[%emt 0:00:00]} d5 {[%emt 0:00:00]} 2. c4 {[%emt 0:00:00]} e6 {[%emt 0:00:00]} 3. Nc3 {[%emt 0:00:00]} Nf6 {[%emt 0:00:00]} 4. cxd5 {[%emt 0:00:00]} exd5 {[%emt 0:00:00]} 5. Bg5 {[%emt 0:00:00]} Be7 {[%emt 0:00:00]} 6. Qc2 {[%emt 0:00:00]} O-O {[%emt 0:00:06]} 7. e3 {[%emt 0:00:02]} c6 {[%emt 0:00:11]} 8. Bd3 {[%emt 0:00:05]} Nbd7 {[%emt 0:00:07]} 9. Nf3 {[%emt 0:00:20]} Re8 {[%emt 0:00:06]} 10. O-O {[%emt 0:00:06]} Nf8 {[%emt 0:00:06]} 11. Rab1 {[%emt 0:01:00]} Ne4 {[%emt 0:01:38]} 12. Bxe7 {[%emt 0:05:13]} Qxe7 {[%emt 0:00:07]} 13. b4 {[%emt 0:03:49]} a6 {[%emt 0:00:25]} 14. a4 {[%emt 0:02:48]} Ng6 {[%emt 0:00:37] [#]} 15. Ne2 $146 {[%emt 0:08:58] D36: Queen's Gambit Declined: Exchange Variation: Main line (5 Bg5 c6 6 Qc2)} ({Predecessor:} 15. Bxe4 dxe4 16. Nd2 f5 17. b5 axb5 18. axb5 Be6 19. bxc6 bxc6 20. Ne2 Bd5 21. Nc4 Qf8 22. g3 Reb8 {½-½ (31) Soltau,A (2632)-Pinkovetsky,S (2666) ICCF email 2005}) 15... Bg4 {[%emt 0:07:38]} 16. Nd2 {[%emt 0:10:26]} Nh4 {[%emt 0:10:20]} 17. Kh1 {[%emt 0:30:03]} Rad8 {[%emt 0:25:55]} 18. Ng3 {[%emt 0:09:52]} Nxg3+ {[%emt 0:16:19]} 19. hxg3 {[%emt 0:07:47]} Rd6 {[%emt 0:03:32]} 20. Kg1 {[%emt 0:07:05]} Rh6 $14 {[%emt 0:00:23]} 21. Rfe1 {[%emt 0:00:20]} Ng6 {[%emt 0:05:06]} 22. e4 {[%emt 0:02:02]} Nf8 {[%emt 0:06:59]} 23. Qc5 {[%emt 0:02:13]} Qg5 {[%emt 0:06:13]} 24. f4 {[%emt 0:00:36]} Qh5 {[%emt 0:00:47]} 25. exd5 {[%emt 0:01:49]} Rxe1+ {[%emt 0:00:06]} 26. Rxe1 {[%emt 0:00:06]} Qxd5 {[%emt 0:01:18]} 27. Bc4 {[%emt 0:01:23]} Qxc5 {[%emt 0:03:33]} 28. dxc5 {[%emt 0:00:41]} Be6 {[%emt 0:00:38]} 29. Bd3 {[%emt 0:00:05]} Rh5 {[%emt 0:02:28]} 30. Be4 {[%emt 0:01:43]} a5 {[%emt 0:06:18]} 31. Bf3 {[%emt 0:05:27]} Rf5 {[%emt 0:00:06]} 32. Be4 {[%emt 0:00:04]} Rh5 {[%emt 0:00:05]} 33. Bf3 {[%emt 0:01:14]} Rf5 {[%emt 0:00:06]} 34. Be4 {[%emt 0:00:05]} Rh5 {[%emt 0:00:21]} 35. Bf3 {[%emt 0:00:57]} 1/2-1/2

[Event "WYCC 2018 G16"]
[Site "Halkidiki"]
[Date "2018.10.20"]
[Round "1"]
[White "Staravoitava, Hanna"]
[Black "Grigorieva, Yulia"]
[Result "0-1"]
[ECO "C68"]
[WhiteElo "1768"]
[BlackElo "2112"]
[Annotator "NA"]
[PlyCount "98"]
[EventDate "2018.10.20"]
[EventType "swiss"]
[EventCountry "GRE"]
[SourceTitle "playchess.com"]
[Source "ChessBase"]
[SourceQuality "1"]
[TimeControl "40/5400+30:1800+30"]

1. e4 {[%emt 0:00:00]} e5 {[%emt 0:00:00]} 2. Nf3 {[%emt 0:00:00]} Nc6 {[%emt 0:00:00]} 3. Bb5 {[%emt 0:00:00]} a6 {[%emt 0:00:00]} 4. Bxc6 {[%emt 0:00:06]} dxc6 {[%emt 0:00:00]} 5. d3 {[%emt 0:00:04]} Bd6 {[%emt 0:04:04]} 6. Nbd2 {[%emt 0:00:06]} f6 {[%emt 0:09:10] C68: Ruy Lopez: Exchange Variation, sidelines} 7. Nc4 {[%emt 0:00:49]} c5 {[%emt 0:05:17]} (7... Be6 8. O-O Ne7 9. Qe2 c5 10. c3 b5 11. Na5 O-O 12. Be3 Qe8 13. Nd2 Nc6 14. Nb7 {½-½ (27) Staroske,U (2514)-Siikaluoma,A (2534) GER email 2016}) 8. O-O {[%emt 0:08:39]} Ne7 {[%emt 0:05:11]} 9. c3 $146 {[%emt 0:00:59]} ({Predecessor:} 9. a4 Be6 10. Ne3 O-O 11. b3 Nc6 12. c3 Qe8 13. Nh4 Qf7 14. Rb1 {0-1 (71) Sabirov,R (1518)-Lampert,J (1977) Willingen 2009}) 9... Nc6 {[%emt 0:06:08]} 10. Qe2 {[%emt 0:14:22]} Be6 {[%emt 0:04:19]} 11. Rd1 {[%emt 0:05:35]} Qd7 {[%emt 0:05:44]} 12. Be3 {[%emt 0:05:52]} Bg4 {[%emt 0:05:06]} 13. Kh1 {[%emt 0:05:52]} Qe7 {[%emt 0:16:47]} 14. Qc2 {[%emt 0:12:05]} Bxf3 {[%emt 0:10:15]} 15. gxf3 {[%emt 0:00:06]} O-O-O {[%emt 0:03:03]} 16. a3 {[%emt 0:04:03]} f5 {[%emt 0:06:19]} 17. b4 {[%emt 0:07:50]} f4 {[%emt 0:01:35]} 18. Bc1 {[%emt 0:04:26]} Qh4 {[%emt 0:02:08]} 19. Rg1 {[%emt 0:01:23]} Rhf8 {[%emt 0:02:10]} 20. Bb2 {[%emt 0:02:24]} Rf6 {[%emt 0:02:55]} 21. Rg2 {[%emt 0:09:52]} Rh6 {[%emt 0:02:44]} 22. d4 {[%emt 0:02:55]} g5 {[%emt 0:04:03]} 23. bxc5 {[%emt 0:03:54]} g4 {[%emt 0:00:28]} 24. Qe2 {[%emt 0:01:03]} Qh3 {[%emt 0:02:03]} 25. Nd2 {[%emt 0:00:18]} exd4 {[%emt 0:01:16]} 26. cxd4 {[%emt 0:03:48]} Bf8 {[%emt 0:00:58]} 27. d5 {[%emt 0:00:22]} Ne7 {[%emt 0:00:51]} 28. fxg4 {[%emt 0:00:20]} Ng6 {[%emt 0:00:41]} 29. Qf3 {[%emt 0:02:03]} Bxc5 {[%emt 0:00:37]} 30. Rc1 {[%emt 0:01:55]} Be7 {[%emt 0:00:30]} 31. g5 {[%emt 0:02:50]} Qxf3 {[%emt 0:00:19]} 32. Nxf3 {[%emt 0:00:01]} Rh3 {[%emt 0:00:08]} 33. Rc3 {[%emt 0:00:06]} Bf8 {[%emt 0:00:59]} 34. Rd3 {[%emt 0:00:26]} Nh4 {[%emt 0:00:29]} 35. Bf6 {[%emt 0:01:56]} Re8 {[%emt 0:00:28]} 36. Nxh4 {[%emt 0:00:54]} Rxd3 {[%emt 0:00:05]} 37. f3 {[%emt 0:00:31]} Rd1+ {[%emt 0:00:46]} 38. Rg1 {[%emt 0:00:01]} Rxg1+ {[%emt 0:00:08]} 39. Kxg1 {[%emt 0:00:04]} Bxa3 {[%emt 0:00:07]} 40. Ng2 {[%emt 0:00:00]} Bd6 {[%emt 0:00:00]} 41. h4 {[%emt 0:02:34]} a5 {[%emt 0:05:40]} 42. Ne1 {[%emt 0:00:33]} a4 {[%emt 0:06:26]} 43. Nd3 {[%emt 0:00:22]} a3 {[%emt 0:01:40]} 44. Kf1 {[%emt 0:01:25]} b5 {[%emt 0:03:16]} 45. Ke2 {[%emt 0:05:24]} b4 $19 {[%emt 0:03:25]} 46. Kd1 {[%emt 0:01:44]} b3 {[%emt 0:01:04]} 47. Kc1 {[%emt 0:01:47]} b2+ {[%emt 0:01:31]} 48. Kb1 {[%emt 0:00:22]} Kd7 {[%emt 0:01:32]} 49. e5 {[%emt 0:00:22]} Rb8 {[%emt 0:04:01]} 0-1

[Event "WYCC 2018 G16"]
[Site "Halkidiki"]
[Date "2018.10.20"]
[Round "1"]
[White "Hovhannisyan, Mane"]
[Black "Palma, Maria"]
[Result "1-0"]
[ECO "A43"]
[WhiteElo "1730"]
[BlackElo "2106"]
[Annotator "NA"]
[PlyCount "65"]
[EventDate "2018.10.20"]
[EventType "swiss"]
[EventCountry "GRE"]
[SourceTitle "playchess.com"]
[Source "ChessBase"]
[SourceQuality "1"]
[TimeControl "40/5400+30:1800+30"]

1. Nf3 {[%emt 0:00:00]} Nf6 {[%emt 0:00:00]} 2. d4 {[%emt 0:00:00]} c5 {[%emt 0:00:00]} 3. d5 {[%emt 0:00:00]} b5 {[%emt 0:00:00]} 4. Bg5 {[%emt 0:13:33]} Ne4 {[%emt 0:01:50]} 5. Bf4 {[%emt 0:00:23]} Qa5+ {[%emt 0:11:44]} 6. c3 {[%emt 0:01:55]} b4 {[%emt 0:04:33]} 7. Qb3 {[%emt 0:07:01]} (7. Qc2 $16 bxc3 8. bxc3) 7... Na6 {[%emt 0:20:15]} 8. Ne5 {[%emt 0:08:47]} d6 {[%emt 0:16:45]} (8... g5 $142 9. Nc4 Qd8) 9. Nc4 {[%emt 0:09:11]} Qd8 {[%emt 0:04:38]} 10. f3 {[%emt 0:01:42]} Nf6 {[%emt 0:00:26]} 11. e4 {[%emt 0:00:26]} Nc7 {[%emt 0:02:07]} 12. cxb4 $18 {[%emt 0:05:12]} Rb8 {[%emt 0:02:46]} 13. a3 {[%emt 0:03:30]} Bd7 {[%emt 0:02:49]} 14. Nc3 {[%emt 0:02:31]} g6 {[%emt 0:07:45]} 15. Be2 {[%emt 0:07:04]} Bg7 {[%emt 0:01:49]} 16. O-O {[%emt 0:00:39]} O-O {[%emt 0:00:50]} 17. Be3 {[%emt 0:12:16]} Nb5 {[%emt 0:04:21]} 18. Nxb5 {[%emt 0:06:19]} Rxb5 {[%emt 0:06:56]} 19. Qc2 {[%emt 0:10:44]} cxb4 {[%emt 0:04:05]} 20. Bxa7 {[%emt 0:00:50]} Qc7 {[%emt 0:02:17]} 21. Bf2 {[%emt 0:00:30]} bxa3 22. Rxa3 {[%emt 0:01:23]} Rb4 {[%emt 0:02:45]} 23. Ra7 {[%emt 0:01:20]} Qb8 {[%emt 0:00:03]} 24. Qd2 {[%emt 0:01:02]} Rc8 {[%emt 0:00:46]} 25. Rfa1 {[%emt 0:00:26]} Rb3 {[%emt 0:01:32]} 26. Bd4 {[%emt 0:00:52]} Bb5 {[%emt 0:00:35]} 27. Na5 {[%emt 0:03:07]} Nxe4 {[%emt 0:00:39]} 28. fxe4 {[%emt 0:00:21]} Rxb2 {[%emt 0:01:03]} 29. Bxb2 {[%emt 0:01:39]} Qxa7+ {[%emt 0:00:09]} 30. Kf1 {[%emt 0:00:27]} Bxe2+ {[%emt 0:00:51]} 31. Qxe2 {[%emt 0:00:31]} Rc5 {[%emt 0:00:38]} 32. Nb3 {[%emt 0:00:31]} Qb8 {[%emt 0:00:29]} 33. Nxc5 {[%emt 0:00:22]} 1-0

[Event "WYCC 2018 G16"]
[Site "Halkidiki"]
[Date "2018.10.20"]
[Round "1"]
[White "Plaza Reino, Mercedes"]
[Black "Kucharska, Honorata"]
[Result "0-1"]
[ECO "A55"]
[WhiteElo "1727"]
[BlackElo "2073"]
[Annotator "NA"]
[PlyCount "70"]
[EventDate "2018.10.20"]
[EventType "swiss"]
[EventCountry "GRE"]
[SourceTitle "playchess.com"]
[Source "ChessBase"]
[SourceQuality "1"]
[TimeControl "40/5400+30:1800+30"]

1. d4 {[%emt 0:00:00]} Nf6 {[%emt 0:00:00]} 2. c4 {[%emt 0:00:00]} d6 {[%emt 0:00:00]} 3. Nc3 {[%emt 0:00:07]} Nbd7 {[%emt 0:00:07]} 4. Nf3 {[%emt 0:00:20]} e5 {[%emt 0:00:07]} 5. e4 {[%emt 0:00:25]} Be7 {[%emt 0:00:10]} 6. g3 {[%emt 0:00:29]} O-O {[%emt 0:00:53]} 7. Bg2 {[%emt 0:00:10]} c6 {[%emt 0:00:56]} 8. O-O {[%emt 0:00:26]} Qc7 {[%emt 0:01:36]} 9. h3 {[%emt 0:02:20]} Re8 {[%emt 0:01:28]} 10. Qc2 {[%emt 0:01:25]} a6 {[%emt 0:02:32]} 11. a4 {[%emt 0:02:05]} a5 {[%emt 0:02:34]} 12. Be3 {[%emt 0:01:28]} Bf8 {[%emt 0:03:13]} 13. Rad1 {[%emt 0:02:07]} b6 {[%emt 0:04:15]} 14. Rfe1 $14 {[%emt 0:02:52]} Ba6 {[%emt 0:02:29]} 15. b3 {[%emt 0:01:29]} Rac8 {[%emt 0:03:39]} 16. Rd2 {[%emt 0:06:36]} b5 {[%emt 0:09:55]} 17. c5 {[%emt 0:23:04]} dxc5 {[%emt 0:10:23]} 18. dxe5 {[%emt 0:00:58]} Nxe5 {[%emt 0:05:45]} 19. Nxe5 {[%emt 0:01:03]} Qxe5 {[%emt 0:00:11]} 20. f4 {[%emt 0:02:07]} Qh5 {[%emt 0:09:12]} 21. e5 {[%emt 0:04:13]} b4 {[%emt 0:03:41]} 22. Ne4 {[%emt 0:24:44]} Nxe4 {[%emt 0:00:45]} 23. Bxe4 {[%emt 0:02:52]} Qxh3 {[%emt 0:02:19]} 24. Kf2 {[%emt 0:05:45]} g6 {[%emt 0:02:58]} 25. f5 {[%emt 0:11:38]} Bh6 {[%emt 0:05:11]} 26. Qxc5 {[%emt 0:02:40]} Bxe3+ {[%emt 0:07:34]} 27. Qxe3 {[%emt 0:00:11]} Rxe5 {[%emt 0:00:43]} 28. Qf4 {[%emt 0:01:47]} Rce8 {[%emt 0:01:44]} 29. Rh1 Qxh1 {[%emt 0:00:31]} 30. Bxh1 {[%emt 0:01:03]} Rxf5 {[%emt 0:00:02]} 31. Qxf5 {[%emt 0:00:32]} gxf5 {[%emt 0:00:06]} 32. Bxc6 {[%emt 0:00:21]} Re5 {[%emt 0:01:18]} 33. Kf3 {[%emt 0:00:41]} Rc5 {[%emt 0:00:47]} 34. Bd5 {[%emt 0:00:28]} Rxd5 {[%emt 0:00:06]} 35. Rxd5 {[%emt 0:00:25]} Bb7 {[%emt 0:00:03]} 0-1

[Event "WYCC 2018 G16"]
[Site "Halkidiki"]
[Date "2018.10.20"]
[Round "1"]
[White "Ge, Eva"]
[Black "Srdanovic, Jovana"]
[Result "0-1"]
[ECO "B22"]
[WhiteElo "1701"]
[BlackElo "2072"]
[Annotator "NA"]
[PlyCount "90"]
[EventDate "2018.10.20"]
[EventType "swiss"]
[EventCountry "GRE"]
[SourceTitle "playchess.com"]
[Source "ChessBase"]
[SourceQuality "1"]
[TimeControl "40/5400+30:1800+30"]

1. e4 {[%emt 0:00:00]} c5 {[%emt 0:00:00]} 2. c3 {[%emt 0:00:00]} d5 {[%emt 0:00:00]} 3. exd5 {[%emt 0:00:00]} Qxd5 {[%emt 0:00:00]} 4. d4 {[%emt 0:00:00]} Nf6 {[%emt 0:00:09]} 5. Nf3 {[%emt 0:00:00]} e6 {[%emt 0:00:08]} 6. Be2 {[%emt 0:01:40]} Be7 {[%emt 0:00:57]} 7. O-O {[%emt 0:03:17]} O-O {[%emt 0:01:43]} 8. Be3 {[%emt 0:04:41]} cxd4 {[%emt 0:01:14]} 9. cxd4 {[%emt 0:01:33]} Nc6 {[%emt 0:00:39]} 10. Nc3 {[%emt 0:00:19]} Qd6 {[%emt 0:07:12] LiveBook: 129 Games} 11. Nb5 {[%emt 0:07:18]} Qd8 {[%emt 0:02:51]} 12. Bf4 $11 {[%emt 0:06:57]} Nd5 {[%emt 0:01:52]} 13. Bg3 {[%emt 0:00:50]} a6 {[%emt 0:02:16]} 14. Nc3 {[%emt 0:00:56]} b6 {[%emt 0:23:26]} 15. Bd3 {[%emt 0:10:13]} Bb7 {[%emt 0:01:38]} 16. Rc1 {[%emt 0:07:18]} Rc8 {[%emt 0:03:31]} 17. Qe2 {[%emt 0:09:31]} Ndb4 {[%emt 0:02:59]} 18. Bb1 {[%emt 0:06:26]} g6 {[%emt 0:22:13]} 19. Rfd1 {[%emt 0:18:27]} Nd5 {[%emt 0:05:02]} 20. h4 Nf6 {[%emt 0:02:06]} 21. d5 {[%emt 0:14:45]} exd5 {[%emt 0:04:19]} 22. h5 {[%emt 0:02:55]} d4 {[%emt 0:04:26]} 23. hxg6 {[%emt 0:02:21]} hxg6 {[%emt 0:00:07]} 24. Ne4 {[%emt 0:01:10]} Nxe4 {[%emt 0:01:00]} 25. Qxe4 {[%emt 0:00:02]} Bf6 {[%emt 0:00:15]} 26. Qf4 {[%emt 0:01:42]} Kg7 {[%emt 0:01:48]} 27. Rc4 {[%emt 0:00:29]} b5 {[%emt 0:01:42]} 28. Rc5 {[%emt 0:00:37]} Qe7 {[%emt 0:01:05]} 29. Rdc1 {[%emt 0:00:20]} Rfe8 {[%emt 0:01:12]} 30. a3 {[%emt 0:00:39]} Na5 {[%emt 0:04:12]} 31. Rxc8 {[%emt 0:00:15]} Rxc8 {[%emt 0:00:05]} 32. Re1 {[%emt 0:00:39]} Qd8 {[%emt 0:00:55]} 33. Ne5 {[%emt 0:00:22]} Nc6 {[%emt 0:01:31]} 34. Ng4 {[%emt 0:00:40]} Bg5 {[%emt 0:00:07]} 35. Qe4 {[%emt 0:00:24]} Qe7 {[%emt 0:02:57]} 36. Qxe7 {[%emt 0:00:39]} Bxe7 {[%emt 0:00:06]} 37. Be4 {[%emt 0:00:27]} Kf8 {[%emt 0:01:37]} 38. b4 {[%emt 0:00:34]} Nd8 {[%emt 0:00:43]} 39. Bxb7 {[%emt 0:00:31]} Nxb7 {[%emt 0:00:04]} 40. Be5 {[%emt 0:00:00]} Rd8 {[%emt 0:00:00]} 41. Bg7+ {[%emt 0:05:36]} Kxg7 {[%emt 0:01:37]} 42. Rxe7 {[%emt 0:00:01]} Nd6 {[%emt 0:00:35]} 43. Ne5 {[%emt 0:05:32]} Kf6 {[%emt 0:02:03]} 44. Nc6 {[%emt 0:02:33]} Rc8 {[%emt 0:00:11]} 45. Re5 {[%emt 0:04:23]} Rxc6 {[%emt 0:00:08]} 0-1

[Event "WYCC 2018 G16"]
[Site "Halkidiki"]
[Date "2018.10.20"]
[Round "1"]
[White "Golsta, Ramona"]
[Black "Meenal Gupta"]
[Result "1-0"]
[ECO "A46"]
[WhiteElo "1681"]
[BlackElo "2065"]
[Annotator "NA"]
[PlyCount "73"]
[EventDate "2018.10.20"]
[EventType "swiss"]
[EventCountry "GRE"]
[SourceTitle "playchess.com"]
[Source "ChessBase"]
[SourceQuality "1"]
[TimeControl "40/5400+30:1800+30"]

1. d4 {[%emt 0:00:00]} Nf6 2. Nf3 {[%emt 0:00:00]} e6 {[%emt 0:00:38]} 3. Bg5 {[%emt 0:00:03]} d5 {[%emt 0:01:39]} 4. e3 {[%emt 0:00:52]} Be7 {[%emt 0:02:16]} 5. Bd3 {[%emt 0:00:39]} Nbd7 {[%emt 0:01:16]} 6. O-O {[%emt 0:03:17]} O-O {[%emt 0:02:58]} 7. Nbd2 {[%emt 0:09:08]} h6 {[%emt 0:08:33]} 8. Bh4 {[%emt 0:00:24]} c5 {[%emt 0:00:13] LiveBook: 11 Games} 9. c3 {[%emt 0:01:06]} a6 {[%emt 0:03:28]} 10. Rc1 {[%emt 0:05:16]} Ra7 {[%emt 0:03:47]} 11. Bb1 $14 {[%emt 0:19:17]} b5 {[%emt 0:02:06]} 12. Ne5 {[%emt 0:01:43]} Bb7 {[%emt 0:01:16]} 13. Qc2 {[%emt 0:05:03]} g5 {[%emt 0:09:59]} 14. Bg3 {[%emt 0:01:19]} Nb6 {[%emt 0:08:54]} 15. Ng4 {[%emt 0:03:52]} Nbd7 {[%emt 0:01:46]} 16. Be5 {[%emt 0:05:32]} Ne4 {[%emt 0:03:51]} 17. f3 {[%emt 0:04:01]} h5 {[%emt 0:00:08]} 18. fxe4 {[%emt 0:08:56]} hxg4 {[%emt 0:00:10]} 19. exd5 f5 {[%emt 0:00:09]} 20. dxe6 {[%emt 0:01:12]} Nxe5 {[%emt 0:00:19]} 21. dxe5 {[%emt 0:00:03]} Qd5 {[%emt 0:00:57]} 22. e4 {[%emt 0:01:32]} Qxe5 {[%emt 0:06:14]} 23. exf5 {[%emt 0:05:10]} Bd6 {[%emt 0:15:22]} 24. g3 {[%emt 0:06:59]} Qe3+ {[%emt 0:00:05]} 25. Rf2 {[%emt 0:00:15]} Rf6 {[%emt 0:00:11]} 26. Qd3 {[%emt 0:01:23]} Qe5 {[%emt 0:00:54]} 27. Ne4 {[%emt 0:04:34]} Bxe4 {[%emt 0:01:01]} 28. Qxe4 {[%emt 0:00:01]} Qxe4 {[%emt 0:00:13]} 29. Bxe4 {[%emt 0:00:01]} c4 {[%emt 0:00:06]} 30. Rd2 {[%emt 0:01:45]} Bc5+ {[%emt 0:00:07]} 31. Kg2 {[%emt 0:00:30]} Be3 {[%emt 0:00:05]} 32. Rd8+ {[%emt 0:00:11]} Kg7 {[%emt 0:00:05]} 33. Rcd1 {[%emt 0:00:16]} Re7 {[%emt 0:00:16]} 34. Ra8 {[%emt 0:06:47]} Ba7 {[%emt 0:01:46]} 35. Rdd8 {[%emt 0:01:36]} Rh6 {[%emt 0:00:08]} 36. Rd7 {[%emt 0:01:13]} Bc5 {[%emt 0:00:04]} 37. Rc8 {[%emt 0:01:40]} 1-0